fUSD/lending_fUSD_20240904
["ID","MTS","AMOUNT","RATE_DAILY","PERIOD"]
[337190520,1725493894095,-500.0,0.00014989,2]
[337190521,1725493894104,-1580.9,0.00014989,2]
[337190522,1725493894113,-787.1,0.00014989,2]
[337190523,1725493894123,-500.0,0.00014989,2]
[337190524,1725493894132,-1580.9,0.00014989,2]
[337190525,1725493894142,-787.1,0.00014989,2]
[337190526,1725493894151,-447.62,0.00014989,2]
[337190527,1725493894162,-719.86,0.00014989,2]
[337190528,1725493894171,-719.86,0.00014989,2]
[337190529,1725493894181,-719.86,0.00014989,2]
[337190530,1725493894190,-719.86,0.00014989,2]
[337190531,1725493894200,-719.86,0.00014989,2]
[337190532,1725493894210,-719.86,0.00014989,2]
[337190533,1725493894219,-923.71,0.00014989,2]
[337190534,1725493894229,-500.0,0.00014989,2]
[337190535,1725493894238,-310.56643282,0.00014989,2]
[337190536,1725493894248,-1940.48,0.00014989,2]
[337190537,1725493894258,-1940.48,0.00014989,2]
[337190538,1725493894267,-1350.53,0.00014989,2]
[337190539,1725493894277,-1842.89,0.00014989,2]
[337190540,1725493894286,-151.0,0.00014989,2]
[337190541,1725493894297,-1350.53,0.00014989,2]
[337190542,1725493894307,-1350.53,0.00014989,2]
[337190543,1725493894317,-151.0,0.00014989,2]
[337190544,1725493894326,-1350.53,0.00014989,2]
[337190545,1725493894335,-1350.53,0.00014989,2]
[337190546,1725493894344,-1350.53,0.00014989,2]
[337190547,1725493894354,-1306.2,0.00014989,2]
[337190548,1725493894364,-1306.2,0.00014989,2]
[337190549,1725493894373,-1306.2,0.00014989,2]
[337190550,1725493894382,-500.0,0.00014989,2]
[337190551,1725493894392,-500.0,0.00014989,2]
[337190552,1725493894401,-500.0,0.00014989,2]
[337190553,1725493894412,-500.0,0.00014989,2]
[337190554,1725493894422,-202.740062,0.00014989,2]
[337190555,1725493894432,-500.0,0.00014989,2]
[337190556,1725493894442,-500.0,0.00014989,2]
[337190557,1725493894452,-1143.72,0.00014989,2]
[337190558,1725493894463,-1143.72,0.00014989,2]
[337190559,1725493894474,-1143.72,0.00014989,2]
[337190560,1725493894484,-1143.72,0.00014989,2]
[337190561,1725493894494,-1143.72,0.00014989,2]
[337190562,1725493894505,-1967.88,0.00014989,2]
[337190563,1725493894516,-1143.72,0.00014989,2]
[337190564,1725493894526,-1967.88,0.00014989,2]
[337190565,1725493894537,-500.0,0.00014989,2]
[337190566,1725493894549,-500.0,0.00014989,2]
[337190567,1725493894559,-633.58,0.00014989,2]
[337190568,1725493894569,-633.58,0.00014989,2]
[337190569,1725493894578,-633.58,0.00014989,2]
[337190570,1725493894589,-500.0,0.00014989,2]
[337190571,1725493894599,-500.0,0.00014989,2]
[337190572,1725493894608,-500.0,0.00014989,2]
[337190573,1725493894622,-500.0,0.00014989,2]
[337190574,1725493894634,-459.25,0.00014989,2]
[337190575,1725493894644,-549.27,0.00014989,2]
[337190576,1725493894655,-500.0,0.00014989,2]
[337190577,1725493894665,-500.0,0.00014989,2]
[337190578,1725493894675,-500.0,0.00014989,2]
[337190579,1725493894684,-1248.95,0.00014989,2]
[337190580,1725493894695,-1248.95,0.00014989,2]
[337190581,1725493894704,-856.51,0.00014989,2]
[337190582,1725493894714,-856.51,0.00014989,2]
[337190583,1725493894723,-500.0,0.00014989,2]
[337190584,1725493894733,-856.51,0.00014989,2]
[337190585,1725493894742,-856.51,0.00014989,2]
[337190586,1725493894751,-856.51,0.00014989,2]
[337190587,1725493894760,-1217.24,0.00014989,2]
[337190588,1725493894769,-620.27,0.00014989,2]
[337190589,1725493894779,-856.51,0.00014989,2]
[337190590,1725493894788,-620.27,0.00014989,2]
[337190591,1725493894799,-620.27,0.00014989,2]
[337190592,1725493894809,-1217.24,0.00014989,2]
[337190593,1725493894818,-620.27,0.00014989,2]
[337190594,1725493894827,-1217.24,0.00014989,2]
[337190595,1725493894836,-1217.24,0.00014989,2]
[337190596,1725493894846,-500.0,0.00014989,2]
[337190597,1725493894855,-759.78,0.00014989,2]
[337190598,1725493894864,-518.66405276,0.00014989,2]
[337190599,1725493894873,-1689.57,0.00014989,2]
[337190600,1725493894882,-633.09,0.00014989,2]
[337190601,1725493894892,-633.09,0.00014989,2]
[337190602,1725493894902,-614.37951029,0.00014989,2]
[337190603,1725493894911,-1193.97,0.00014989,2]
[337190604,1725493894920,-1223.39,0.00014989,2]
[337190605,1725493894930,-1193.97,0.00014989,2]
[337190606,1725493894939,-1223.39,0.00014989,2]
[337190607,1725493894949,-880.57,0.00014989,2]
[337190608,1725493894958,-1223.39,0.00014989,2]
[337190609,1725493894967,-1223.39,0.00014989,2]
[337190610,1725493894976,-1223.39,0.00014989,2]
[337190611,1725493894986,-500.0,0.00014989,2]
[337190612,1725493894996,-1223.39,0.00014989,2]
[337190613,1725493895005,-2515.32,0.00014989,2]
[337190614,1725493895015,-1370.12,0.00014989,2]
[337190615,1725493895023,-1370.12,0.00014989,2]
[337190616,1725493895033,-1330.48,0.00014989,2]
[337190617,1725493895044,-1370.12,0.00014989,2]
[337190618,1725493895053,-1330.48,0.00014989,2]
[337190619,1725493895062,-1330.48,0.00014989,2]
[337190620,1725493895071,-1330.48,0.00014989,2]
[337190621,1725493895080,-1330.48,0.00014989,2]
[337190622,1725493895089,-1330.48,0.00014989,2]
[337190623,1725493895098,-500.0,0.00014989,2]
[337190624,1725493895108,-500.0,0.00014989,2]
[337190625,1725493895117,-500.0,0.00014989,2]
[337190626,1725493895126,-500.0,0.00014989,2]
[337190627,1725493895136,-500.0,0.00014989,2]
[337190628,1725493895146,-500.0,0.00014989,2]
[337190629,1725493895156,-1002.0,0.00014989,2]
[337190630,1725493895165,-1002.0,0.00014989,2]
[337190631,1725493895174,-1002.0,0.00014989,2]
[337190632,1725493895183,-500.0,0.00014989,2]
[337190633,1725493895192,-1002.0,0.00014989,2]
[337190634,1725493895203,-1002.0,0.00014989,2]
[337190635,1725493895213,-1002.0,0.00014989,2]
[337190636,1725493895222,-1919.53,0.00014989,2]
[337190637,1725493895232,-20290.12,0.00014989,2]
[337190638,1725493895240,-20290.12,0.00014989,2]
[337190639,1725493895249,-1919.53,0.00014989,2]
[337190640,1725493895259,-1919.53,0.00014989,2]
[337190641,1725493895268,-20290.12,0.00014989,2]
[337190642,1725493895277,-20290.12,0.00014989,2]
[337190643,1725493895287,-500.0,0.00014989,2]
[337190644,1725493895297,-500.0,0.00014989,2]
[337190645,1725493895307,-500.0,0.00014989,2]
[337190646,1725493895316,-500.0,0.00014989,2]
[337190647,1725493895326,-500.0,0.00014989,2]
[337190648,1725493895336,-500.0,0.00014989,2]
[337190649,1725493895346,-500.0,0.00014989,2]
[337190650,1725493895355,-1453.8,0.00014989,2]
[337190651,1725493895365,-1453.8,0.00014989,2]
[337190652,1725493895374,-500.0,0.00014989,2]
[337190653,1725493895384,-1453.8,0.00014989,2]
[337190654,1725493895393,-7141.47,0.00014989,2]
[337190655,1725493895403,-7141.47,0.00014989,2]
[337190656,1725493895412,-1535.5,0.00014989,2]
[337190657,1725493895422,-1535.5,0.00014989,2]
[337190658,1725493895431,-1535.5,0.00014989,2]
[337190659,1725493895440,-1535.5,0.00014989,2]
[337190660,1725493895450,-921.5,0.00014989,2]
[337190661,1725493895460,-921.5,0.00014989,2]
[337190662,1725493895471,-513.72429947,0.00014989,2]
[337190663,1725493895480,-1434.26,0.00014989,2]
[337190664,1725493895489,-1434.26,0.00014989,2]
[337190665,1725493895499,-1434.26,0.00014989,2]
[337190666,1725493895508,-834.65,0.00014989,2]
[337190667,1725493895517,-1256.47,0.00014989,2]
[337190668,1725493895526,-151.0,0.00014989,2]
[337190669,1725493895535,-151.0,0.00014989,2]
[337190670,1725493895545,-783.4,0.00014989,2]
[337190671,1725493895554,-783.4,0.00014989,2]
[337190672,1725493895564,-783.4,0.00014989,2]
[337190673,1725493895574,-783.4,0.00014989,2]
[337190674,1725493895585,-783.4,0.00014989,2]
[337190675,1725493895595,-783.4,0.00014989,2]
[337190676,1725493895604,-1220.28,0.00014989,2]
[337190677,1725493895613,-783.4,0.00014989,2]
[337190678,1725493895627,-1220.28,0.00014989,2]
[337190679,1725493895636,-783.4,0.00014989,2]
[337190680,1725493895646,-1220.28,0.00014989,2]
[337190681,1725493895655,-783.47815302,0.00014989,2]
[337190682,1725493895667,-1220.28,0.00014989,2]
[337190683,1725493895677,-1220.28,0.00014989,2]
[337190684,1725493895686,-1220.28,0.00014989,2]
[337190685,1725493895697,-1107.95,0.00014989,2]
[337190686,1725493895707,-1107.95,0.00014989,2]
[337190687,1725493895718,-1107.95,0.00014989,2]
[337190688,1725493895728,-633.94,0.00014989,2]
[337190689,1725493895739,-8826.45,0.00014989,2]
[337190690,1725493895748,-3333.50825266,0.00014989,2]
[337190691,1725493896438,-1158.36,0.00014893,2]
[337190692,1725493896449,-5492.94174734,0.00014989,2]
[337190693,1725493896459,-493.50976629,0.00014989,2]
[337190694,1725493896470,-506.22,0.00014989,2]
[337190695,1725493896481,-500.0,0.00014989,2]
[337190696,1725493896492,-6819.83,0.00014989,2]
[337190697,1725493896502,-500.0,0.00014989,2]
[337190698,1725493896513,-6627.36672654,0.00014989,2]
[337190699,1725493896527,-192.46327346,0.00014989,2]
[337190700,1725493896537,-500.0,0.00014989,2]
[337190701,1725493896551,-383.53672654,0.00014989,2]
[337190703,1725493897095,-500.0,0.0001489,2]
[337190704,1725493897105,-500.0,0.0001489,2]
[337190705,1725493897115,-500.0,0.0001489,2]
[337190706,1725493897126,-500.0,0.00014891,2]
[337190707,1725493897394,-500.0,0.00014891,2]
[337190708,1725493897404,-500.0,0.00014891,2]
[337190709,1725493897413,-500.0,0.00014891,2]
[337190710,1725493897422,-151.0,0.00014891,2]
[337190711,1725493897432,-204.493626,0.00014891,2]
[337190712,1725493897441,-500.0,0.00014891,2]
[337190713,1725493897450,-500.0,0.00014891,2]
[337190714,1725493897460,-500.0,0.00014892,2]
[337190715,1725493897469,-500.0,0.00014892,2]
[337190716,1725493897478,-500.0,0.00014985,2]
[337190717,1725493897488,-500.0,0.00014987,2]
[337190718,1725493897497,-1158.36,0.00014987,2]
[337190719,1725493897507,-500.0,0.00014988,2]
[337190720,1725493897515,-1158.36,0.00014988,2]
[337190721,1725493897525,-116.46327346,0.00014989,2]
[337190722,1725493897534,-1252.29,0.00014989,2]
[337190723,1725493897543,-1252.29,0.00014989,2]
[337190724,1725493897552,-1252.29,0.00014989,2]
[337190725,1725493897561,-1252.29,0.00014989,2]
[337190726,1725493897570,-1252.29,0.00014989,2]
[337190727,1725493897579,-1252.29,0.00014989,2]
[337190728,1725493897588,-3329.55,0.00014989,2]
[337190729,1725493897598,-3329.55,0.00014989,2]
[337190730,1725493897607,-3329.55,0.00014989,2]
[337190731,1725493897616,-2265.63,0.00014989,2]
[337190732,1725493897627,-2265.63,0.00014989,2]
[337190733,1725493897637,-500.0,0.00014989,2]
[337190734,1725493897646,-252.361117,0.00014989,2]
[337190735,1725493897655,-500.0,0.00014989,2]
[337190736,1725493897664,-252.361117,0.00014989,2]
[337190737,1725493897674,-500.0,0.00014989,2]
[337190738,1725493897683,-342.46214577,0.00014989,2]
[337190739,1725493897692,-31066.82,0.00014989,2]
[337190740,1725493897702,-546.25,0.00014989,2]
[337190741,1725493897711,-31066.82,0.00014989,2]
[337190742,1725493897720,-546.25,0.00014989,2]
[337190743,1725493897730,-546.25,0.00014989,2]
[337190744,1725493897741,-602.09,0.00014989,2]
[337190745,1725493897751,-252.361117,0.00014989,2]
[337190746,1725493897760,-252.361117,0.00014989,2]
[337190747,1725493897770,-500.0,0.00014989,2]
[337190748,1725493897779,-500.0,0.00014989,2]
[337190749,1725493897788,-500.0,0.00014989,2]
[337190750,1725493897797,-500.0,0.00014989,2]
[337190751,1725493897807,-500.0,0.00014989,2]
[337190752,1725493897816,-2004.33,0.00014989,2]
[337190753,1725493897826,-2004.33,0.00014989,2]
[337190754,1725493897835,-2004.33,0.00014989,2]
[337190755,1725493897844,-500.0,0.00014989,2]
[337190756,1725493897853,-500.0,0.00014989,2]
[337190757,1725493897862,-500.0,0.00014989,2]
[337190758,1725493897871,-500.0,0.00014989,2]
[337190759,1725493897880,-500.0,0.00014989,2]
[337190760,1725493897889,-500.0,0.00014989,2]
[337190761,1725493897898,-785.56,0.00014989,2]
[337190762,1725493897907,-785.56,0.00014989,2]
[337190763,1725493897916,-785.56,0.00014989,2]
[337190764,1725493897926,-500.0,0.00014989,2]
[337190765,1725493897935,-500.0,0.00014989,2]
[337190766,1725493897944,-500.0,0.00014989,2]
[337190767,1725493897953,-500.0,0.00014989,2]
[337190768,1725493897962,-500.0,0.00014989,2]
[337190769,1725493897971,-477.67420017,0.00014989,2]
[337190770,1725493897981,-500.0,0.00014989,2]
[337190771,1725493897990,-500.0,0.00014989,2]
[337190772,1725493897999,-500.0,0.00014989,2]
[337190773,1725493898009,-457.81064018,0.00014989,2]
[337190774,1725493898018,-500.0,0.00014989,2]
[337190775,1725493898027,-2391.7,0.00014989,2]
[337190776,1725493898036,-1080.59,0.00014989,2]
[337190777,1725493898045,-2391.7,0.00014989,2]
[337190778,1725493898055,-1080.59,0.00014989,2]
[337190779,1725493898064,-500.0,0.00014989,2]
[337190780,1725493898073,-1080.59,0.00014989,2]
[337190781,1725493898083,-500.0,0.00014989,2]
[337190782,1725493898092,-500.0,0.00014989,2]
[337190783,1725493898101,-500.0,0.00014989,2]
[337190784,1725493898110,-158.75452934,0.00014989,2]
[337190785,1725493898119,-500.0,0.00014989,2]
[337190786,1725493898129,-500.0,0.00014989,2]
[337190787,1725493898138,-500.0,0.00014989,2]
[337190788,1725493898147,-2369.51,0.00014989,2]
[337190789,1725493898156,-500.0,0.00014989,2]
[337190790,1725493898166,-2369.51,0.00014989,2]
[337190791,1725493898176,-500.0,0.00014989,2]
[337190792,1725493898186,-352.5759926,0.00014989,2]
[337190793,1725493898195,-975.89,0.00014989,2]
[337190794,1725493898205,-975.89,0.00014989,2]
[337190795,1725493898215,-975.89,0.00014989,2]
[337190796,1725493898224,-659.68,0.00014989,2]
[337190797,1725493898234,-686.45,0.00014989,2]
[337190798,1725493898244,-1883.96,0.00014989,2]
[337190799,1725493898254,-1883.96,0.00014989,2]
[337190800,1725493898264,-500.0,0.00014989,2]
[337190801,1725493898274,-3799.95,0.00014989,2]
[337190802,1725493898284,-3799.95,0.00014989,2]
[337190803,1725493898294,-3799.95,0.00014989,2]
[337190804,1725493898303,-3799.95,0.00014989,2]
[337190805,1725493898313,-3799.95,0.00014989,2]
[337190806,1725493898322,-698.74,0.00014989,2]
[337190807,1725493898331,-500.0,0.00014989,2]
[337190808,1725493898341,-3799.95,0.00014989,2]
[337190809,1725493898350,-3799.95,0.00014989,2]
[337190810,1725493898360,-698.74,0.00014989,2]
[337190811,1725493898369,-3799.95,0.00014989,2]
[337190812,1725493898378,-2452.3,0.00014989,2]
[337190813,1725493898388,-698.74,0.00014989,2]
[337190814,1725493898397,-3800.15137306,0.00014989,2]
[337190815,1725493898406,-2452.3,0.00014989,2]
[337190816,1725493898416,-2452.3,0.00014989,2]
[337190817,1725493898425,-151.0,0.00014989,2]
[337190818,1725493898435,-500.0,0.00014989,2]
[337190819,1725493898444,-1998.41,0.00014989,2]
[337190820,1725493898453,-1998.41,0.00014989,2]
[337190821,1725493898462,-1998.41,0.00014989,2]
[337190822,1725493898473,-1998.41,0.00014989,2]
[337190823,1725493898483,-1998.41,0.00014989,2]
[337190824,1725493898492,-1998.41,0.00014989,2]
[337190825,1725493898501,-1998.41,0.00014989,2]
[337190826,1725493898511,-1998.41,0.00014989,2]
[337190827,1725493898520,-1998.55612221,0.00014989,2]
[337190828,1725493898530,-540.29,0.00014989,2]
[337190829,1725493898539,-540.29,0.00014989,2]
[337190830,1725493898549,-540.29,0.00014989,2]
[337190831,1725493898559,-540.29,0.00014989,2]
[337190832,1725493898568,-1169.66,0.00014989,2]
[337190833,1725493898578,-1169.66,0.00014989,2]
[337190834,1725493898587,-1169.66,0.00014989,2]
[337190835,1725493898597,-774.29,0.00014989,2]
[337190836,1725493898606,-774.29,0.00014989,2]
[337190837,1725493898615,-774.29,0.00014989,2]
[337190838,1725493898626,-3869.6719553,0.00014989,2]
[337190839,1725493898635,-4052.4256934,0.00014989,2]
[337190840,1725493898644,-4235.1794315,0.00014989,2]
[337190841,1725493898654,-4417.9331697,0.00014989,2]
[337190842,1725493898663,-4600.6869078,0.00014989,2]
[337190843,1725493898672,-500.0,0.00014989,2]
[337190844,1725493898681,-530.47,0.00014989,2]
[337190845,1725493898691,-530.47,0.00014989,2]
[337190846,1725493898700,-530.47,0.00014989,2]
[337190847,1725493898709,-500.0,0.00014989,2]
[337190848,1725493898719,-530.47,0.00014989,2]
[337190849,1725493898728,-530.47,0.00014989,2]
[337190850,1725493898737,-530.47,0.00014989,2]
[337190851,1725493898746,-539.57,0.00014989,2]
[337190852,1725493898755,-539.57,0.00014989,2]
[337190853,1725493898765,-539.57,0.00014989,2]
[337190854,1725493898775,-2338.27,0.00014989,2]
[337190855,1725493898784,-2338.27,0.00014989,2]
[337190856,1725493898794,-500.0,0.00014989,2]
[337190857,1725493898804,-3957.26,0.00014989,2]
[337190858,1725493898813,-1233.86,0.00014989,2]
[337190859,1725493898823,-3957.26,0.00014989,2]
[337190860,1725493898833,-1233.86,0.00014989,2]
[337190861,1725493898842,-3957.26,0.00014989,2]
[337190862,1725493898852,-620.13,0.00014989,2]
[337190863,1725493898863,-529.82,0.00014989,2]
[337190864,1725493898872,-620.13,0.00014989,2]
[337190865,1725493898882,-529.82,0.00014989,2]
[337190866,1725493898891,-620.13,0.00014989,2]
[337190867,1725493898901,-529.82,0.00014989,2]
[337190868,1725493898911,-620.13,0.00014989,2]
[337190869,1725493898920,-620.13,0.00014989,2]
[337190870,1725493898931,-620.13,0.00014989,2]
[337190871,1725493898941,-16527.03,0.00014989,2]
[337190872,1725493898951,-16527.03,0.00014989,2]
[337190873,1725493898960,-500.0,0.00014989,2]
[337190874,1725493898969,-500.0,0.00014989,2]
[337190875,1725493898979,-500.0,0.00014989,2]
[337190876,1725493898989,-500.0,0.00014989,2]
[337190877,1725493898999,-1583.31,0.00014989,2]
[337190878,1725493899009,-1583.31,0.00014989,2]
[337190879,1725493899018,-1504.1,0.00014989,2]
[337190880,1725493899027,-1504.1,0.00014989,2]
[337190881,1725493899037,-1504.1,0.00014989,2]
[337190882,1725493899048,-515.05,0.00014989,2]
[337190883,1725493899057,-524.79,0.00014989,2]
[337190884,1725493899066,-1498.99,0.00014989,2]
[337190885,1725493899076,-1498.99,0.00014989,2]
[337190886,1725493899086,-500.0,0.00014989,2]
[337190887,1725493899095,-500.0,0.00014989,2]
[337190888,1725493899105,-500.0,0.00014989,2]
[337190889,1725493899114,-500.0,0.00014989,2]
[337190890,1725493899124,-500.0,0.00014989,2]
[337190891,1725493899134,-434.61339211,0.00014989,2]
[337190892,1725493899144,-500.0,0.00014989,2]
[337190893,1725493899154,-523.68565885,0.00014989,2]
[337190894,1725493899164,-1034.71,0.00014989,2]
[337190895,1725493899175,-1587.2,0.00014989,2]
[337190896,1725493899185,-1587.2,0.00014989,2]
[337190897,1725493899195,-1587.2,0.00014989,2]
[337190898,1725493899205,-677.9,0.00014989,2]
[337190899,1725493899215,-677.9,0.00014989,2]
[337190900,1725493899225,-615.56,0.00014989,2]
[337190901,1725493899235,-264.26405844,0.00014989,2]
[337190902,1725493899252,-351.29594156,0.00014989,2]
[337190903,1725493899261,-615.56,0.00014989,2]
[337190904,1725493899271,-615.56,0.00014989,2]
[337190905,1725493899281,-615.56,0.00014989,2]
[337190906,1725493899291,-615.56,0.00014989,2]
[337190907,1725493899304,-3278.12,0.00014989,2]
[337190908,1725493899313,-3278.12,0.00014989,2]
[337190909,1725493899323,-1254.2,0.00014989,2]
[337190910,1725493899332,-615.56,0.00014989,2]
[337190911,1725493899342,-1254.2,0.00014989,2]
[337190912,1725493899351,-615.56,0.00014989,2]
[337190913,1725493899361,-11296.32,0.00014989,2]
[337190914,1725493899371,-1254.2,0.00014989,2]
[337190915,1725493899381,-615.56132588,0.00014989,2]
[337190916,1725493899390,-11296.32,0.00014989,2]
[337190917,1725493899400,-11296.32,0.00014989,2]
[337190918,1725493899409,-11296.32,0.00014989,2]
[337190919,1725493899420,-639.64,0.00014989,2]
[337190920,1725493899430,-1557.04,0.00014989,2]
[337190921,1725493899440,-500.0,0.00014989,2]
[337190922,1725493899450,-1557.04,0.00014989,2]
[337190923,1725493899461,-1557.04,0.00014989,2]
[337190924,1725493899471,-500.0,0.00014989,2]
[337190925,1725493899480,-500.0,0.00014989,2]
[337190926,1725493899490,-500.0,0.00014989,2]
[337190927,1725493899500,-500.0,0.00014989,2]
[337190928,1725493899510,-517.23660945,0.00014989,2]
[337190929,1725493899520,-2938.3,0.00014989,2]
[337190930,1725493899530,-2938.3,0.00014989,2]
[337190931,1725493899539,-500.0,0.00014989,2]
[337190932,1725493899551,-1139.67,0.00014989,2]
[337190933,1725493899562,-500.0,0.00014989,2]
[337190934,1725493899572,-1139.67,0.00014989,2]
[337190935,1725493899582,-500.0,0.00014989,2]
[337190936,1725493899593,-1139.67,0.00014989,2]
[337190937,1725493899603,-1139.67,0.00014989,2]
[337190938,1725493899612,-390.77107986,0.00014989,2]
[337190939,1725493899623,-424.4821194,0.00014989,2]
[337190940,1725493899636,-1314.4,0.00014989,2]
[337190941,1725493899647,-1314.4,0.00014989,2]
[337190942,1725493899742,-500.0,0.00014989,2]
[337190943,1725493899753,-500.0,0.00014989,2]
[337190944,1725493899763,-319.90638479,0.00014989,2]
[337190945,1725493899772,-1326.99,0.00014989,2]
[337190946,1725493899782,-1326.99,0.00014989,2]
[337190947,1725493899792,-1326.99,0.00014989,2]
[337190948,1725493899802,-500.0,0.00014989,2]
[337190949,1725493899811,-1158.36,0.00014989,2]
[337190950,1725493899821,-500.0,0.00014989,2]
[337190951,1725493899830,-1158.36,0.00014989,2]
[337190952,1725493899839,-337.26486357,0.00014989,2]
[337190953,1725493899849,-1158.36,0.00014989,2]
[337190954,1725493899859,-1158.36,0.00014989,2]
[337190955,1725493899868,-501.78212789,0.0001499,2]
[337190956,1725493899878,-500.0,0.0001499,2]
[337190957,1725493899887,-552.49124315,0.0001499,2]
[337190958,1725493899896,-500.0,0.0001499,2]
[337190959,1725493899905,-500.0,0.0001499,2]
[337190960,1725493899914,-500.0,0.0001499,2]
[337190961,1725493899923,-500.0,0.0001499,2]
[337190962,1725493899932,-500.0,0.0001499,2]
[337190963,1725493899942,-500.0,0.0001499,2]
[337190964,1725493899951,-500.0,0.0001499,2]
[337190965,1725493899961,-500.0,0.0001499,2]
[337190966,1725493899970,-500.0,0.0001499,2]
[337190967,1725493899979,-520.88,0.0001499,2]
[337190968,1725493899988,-520.88,0.0001499,2]
[337190969,1725493899998,-520.88,0.0001499,2]
[337190970,1725493900007,-500.0,0.0001499,2]
[337190971,1725493900016,-500.0,0.0001499,2]
[337190972,1725493900025,-500.0,0.0001499,2]
[337190973,1725493900034,-500.0,0.0001499,2]
[337190974,1725493900043,-500.0,0.0001499,2]
[337190975,1725493900052,-596.73,0.0001499,2]
[337190976,1725493900062,-500.0,0.0001499,2]
[337190977,1725493900071,-596.73,0.0001499,2]
[337190978,1725493900081,-500.0,0.0001499,2]
[337190979,1725493900090,-596.73,0.0001499,2]
[337190980,1725493900100,-500.0,0.0001499,2]
[337190981,1725493900109,-500.0,0.0001499,2]
[337190982,1725493900120,-500.0,0.0001499,2]
[337190983,1725493900128,-500.0,0.0001499,2]
[337190984,1725493900138,-500.0,0.0001499,2]
[337190985,1725493900147,-500.0,0.0001499,2]
[337190986,1725493900157,-500.0,0.0001499,2]
[337190987,1725493900166,-500.0,0.0001499,2]
[337190988,1725493900176,-500.0,0.0001499,2]
[337190989,1725493900185,-500.0,0.0001499,2]
[337190990,1725493900194,-500.0,0.0001499,2]
[337190991,1725493900203,-500.0,0.0001499,2]
[337190992,1725493900213,-500.0,0.0001499,2]
[337190993,1725493900223,-500.0,0.0001499,2]
[337190994,1725493900232,-500.0,0.0001499,2]
[337190995,1725493900242,-565.06,0.0001499,2]
[337190996,1725493900251,-565.06,0.0001499,2]
[337190997,1725493900261,-565.06,0.0001499,2]
[337190998,1725493900270,-500.0,0.0001499,2]
[337190999,1725493900279,-500.0,0.0001499,2]
[337191000,1725493900288,-500.0,0.0001499,2]
[337191001,1725493900299,-500.0,0.0001499,2]
[337191002,1725493900308,-480.43564388,0.0001499,2]
[337191003,1725493900317,-500.0,0.0001499,2]
[337191004,1725493900326,-500.0,0.0001499,2]
[337191005,1725493900335,-500.0,0.0001499,2]
[337191006,1725493900344,-500.0,0.0001499,2]
[337191007,1725493900353,-500.0,0.0001499,2]
[337191008,1725493900362,-500.0,0.0001499,2]
[337191009,1725493900371,-500.0,0.0001499,2]
[337191010,1725493900380,-500.0,0.0001499,2]
[337191011,1725493900389,-500.0,0.0001499,2]
[337191012,1725493900398,-500.0,0.0001499,2]
[337191013,1725493900407,-500.0,0.0001499,2]
[337191014,1725493900416,-500.0,0.0001499,2]
[337191015,1725493900425,-500.0,0.0001499,2]
[337191016,1725493900435,-500.0,0.0001499,2]
[337191017,1725493900444,-500.0,0.0001499,2]
[337191018,1725493900454,-500.0,0.0001499,2]
[337191019,1725493900463,-500.0,0.0001499,2]
[337191020,1725493900472,-460.44280436,0.0001499,2]